[Event "Goteborg Open 2018"]
[Site "Molnlycke kulturhus, Biblioteksgatan 2, Molnlycke, Sweden"]
[Date "2018.08.18"]
[Round "5.9"]
[White "Al Waeli, Laith"]
[Black "Johansson, Roy"]
[Result "0-1"]
[TimeControl "15 minutes + 5 seconds per move from move one (Round 1 - 4) / 90 minutes + 30 seconds per move from move one (Round 5 - 8)"]
[WhiteTitle "FM"]
[WhiteFideId "4801059"]
[BlackFideId "1745972"]
[WhiteElo "2084"]
[BlackElo "1889"]

1. d4 {[%clk 01:28:45]} {[%emt 00:02:13]} f5 {[%clk 01:30:47]} {[%emt
00:00:14]} 2. g3 {[%clk 01:28:01]} {[%emt 00:01:14]} g6 {[%clk 01:31:10]}
{[%emt 00:00:08]} 3. Bg2 {[%clk 01:28:22]} {[%emt 00:00:08]} Nf6 {[%clk
01:31:27]} {[%emt 00:00:14]} 4. c4 {[%clk 01:28:50]} {[%emt 00:00:03]} Bg7
{[%clk 01:31:51]} {[%emt 00:00:06]} 5. Nc3 {[%clk 01:29:09]} {[%emt 00:00:10]}
O-O {[%clk 01:32:07]} {[%emt 00:00:14]} 6. Nf3 {[%clk 01:29:29]} {[%emt
00:00:11]} d6 {[%clk 01:32:26]} {[%emt 00:00:11]} 7. O-O {[%clk 01:29:52]}
{[%emt 00:00:07]} Nc6 {[%clk 01:32:37]} {[%emt 00:00:20]} 8. b3 {[%clk
01:26:41]} {[%emt 00:03:40]} e5 {[%clk 01:31:01]} {[%emt 00:02:06]} 9. Bb2
{[%clk 01:22:27]} {[%emt 00:04:44]} e4 {[%clk 01:28:15]} {[%emt 00:03:17]} 10.
Ne1 {[%clk 01:19:40]} {[%emt 00:03:17]} Ng4 {[%clk 01:25:57]} {[%emt 00:02:49]}
11. e3 {[%clk 01:18:22]} {[%emt 00:01:47]} Qg5 {[%clk 01:24:01]} {[%emt
00:02:25]} 12. Nc2 {[%clk 01:18:34]} {[%emt 00:00:18]} h5 {[%clk 01:23:14]}
{[%emt 00:01:17]} 13. h4 {[%clk 01:16:54]} {[%emt 00:02:11]} Qh6 {[%clk
01:22:33]} {[%emt 00:01:11]} 14. f4 {[%clk 01:11:44]} {[%emt 00:05:39]} exf3
{[%clk 01:21:51]} {[%emt 00:01:12]} 15. Qxf3 {[%clk 01:11:59]} {[%emt
00:00:15]} Bd7 {[%clk 01:20:44]} {[%emt 00:01:38]} 16. Nd5 {[%clk 01:10:09]}
{[%emt 00:02:19]} Rac8 {[%clk 01:19:28]} {[%emt 00:01:46]} 17. b4 {[%clk
01:08:43]} {[%emt 00:01:56]} Rf7 {[%clk 01:17:06]} {[%emt 00:02:52]} 18. Rad1
{[%clk 01:02:56]} {[%emt 00:06:16]} Nd8 {[%clk 01:13:04]} {[%emt 00:04:33]} 19.
Bc1 {[%clk 00:59:12]} {[%emt 00:04:15]} Ba4 {[%clk 01:11:53]} {[%emt 00:01:41]}
20. e4 {[%clk 00:56:47]} {[%emt 00:02:55]} Qh8 {[%clk 01:11:18]} {[%emt
00:01:04]} 21. exf5 {[%clk 00:45:57]} {[%emt 00:11:21]} Bxc2 {[%clk 01:08:41]}
{[%emt 00:03:07]} 22. Qe2 {[%clk 00:45:08]} {[%emt 00:01:19]} Bxd4+ {[%clk
01:01:46]} {[%emt 00:07:25]} 23. Kh1 {[%clk 00:40:13]} {[%emt 00:05:24]} Qe5
{[%clk 00:59:21]} {[%emt 00:02:54]} 24. Qxe5 {[%clk 00:36:49]} {[%emt
00:03:55]} Bxe5 {[%clk 00:59:22]} {[%emt 00:00:29]} 25. fxg6 {[%clk 00:35:22]}
{[%emt 00:01:56]} Bxg6 {[%clk 00:58:24]} {[%emt 00:01:29]} 26. Bg5 {[%clk
00:35:51]} {[%emt 00:00:01]} Kg7 {[%clk 00:56:37]} {[%emt 00:02:16]} 27. Ne7
{[%clk 00:33:46]} {[%emt 00:02:35]} Ra8 {[%clk 00:55:23]} {[%emt 00:01:45]} 28.
Nxg6 {[%clk 00:30:13]} {[%emt 00:04:02]} Kxg6 {[%clk 00:55:13]} {[%emt
00:00:40]} 29. Be4+ {[%clk 00:29:23]} {[%emt 00:01:21]} Kg7 {[%clk 00:55:23]}
{[%emt 00:00:20]} 30. Kg2 {[%clk 00:25:26]} {[%emt 00:04:27]} c6 {[%clk
00:51:02]} {[%emt 00:04:51]} 31. Bf5 {[%clk 00:25:15]} {[%emt 00:00:40]} Nh6
{[%clk 00:49:05]} {[%emt 00:02:27]} 32. Bh3 {[%clk 00:25:25]} {[%emt 00:00:20]}
Rxf1 {[%clk 00:48:34]} {[%emt 00:01:00]} 33. Bxh6+ {[%clk 00:23:24]} {[%emt
00:02:31]} Kxh6 {[%clk 00:42:50]} {[%emt 00:06:14]} 34. Rxf1 {[%clk 00:23:51]}
{[%emt 00:00:05]} Kg6 {[%clk 00:39:55]} {[%emt 00:03:25]} 35. Rf8 {[%clk
00:23:46]} {[%emt 00:00:36]} Bf6 {[%clk 00:37:50]} {[%emt 00:02:34]} 36. Bd7
{[%clk 00:23:06]} {[%emt 00:01:09]} a5 {[%clk 00:34:16]} {[%emt 00:04:06]} 37.
b5 {[%clk 00:23:28]} {[%emt 00:00:07]} cxb5 {[%clk 00:33:59]} {[%emt 00:00:47]}
38. cxb5 {[%clk 00:23:48]} {[%emt 00:00:10]} b6 {[%clk 00:34:03]} {[%emt
00:00:27]} 39. Bc6 {[%clk 00:15:25]} {[%emt 00:08:52]} Ra7 {[%clk 00:33:31]}
{[%emt 00:01:02]} 40. Bd5 {[%clk 00:15:54]} Rc7 {[%clk 00:31:14]} {[%emt
00:02:48]} 41. Rg8+ {[%clk 00:14:35]} {[%emt 00:01:49]} Kf5 {[%clk 00:30:52]}
{[%emt 00:00:52]} 42. Re8 {[%clk 00:13:08]} {[%emt 00:01:57]} Kg6 {[%clk
00:27:02]} {[%emt 00:04:20]} 43. Rg8+ {[%clk 00:13:12]} {[%emt 00:00:25]} Rg7
{[%clk 00:25:10]} {[%emt 00:02:22]} 44. Rf8 {[%clk 00:13:21]} {[%emt 00:00:21]}
Nf7 {[%clk 00:19:40]} {[%emt 00:06:00]} 45. Be4+ {[%clk 00:12:45]} {[%emt
00:01:06]} Kh6 {[%clk 00:19:42]} {[%emt 00:00:27]} 46. Bd5 {[%clk 00:10:13]}
{[%emt 00:03:03]} Bxh4 {[%clk 00:15:24]} {[%emt 00:04:48]} 47. Rxf7 {[%clk
00:09:47]} {[%emt 00:00:56]} Rxg3+ {[%clk 00:15:25]} {[%emt 00:00:29]} 48. Kh2
{[%clk 00:09:59]} {[%emt 00:00:18]} Rd3 {[%clk 00:13:47]} {[%emt 00:02:08]} 49.
Rf5 {[%clk 00:08:22]} {[%emt 00:02:08]} Bg3+ {[%clk 00:13:15]} {[%emt
00:01:02]} 50. Kg2 {[%clk 00:08:47]} {[%emt 00:00:05]} Be5 {[%clk 00:13:27]}
{[%emt 00:00:18]} 51. Bb3 {[%clk 00:08:37]} {[%emt 00:00:40]} h4 {[%clk
00:12:51]} {[%emt 00:01:05]} 52. Rf3 {[%clk 00:08:37]} {[%emt 00:00:30]} Rxf3
{[%clk 00:13:07]} {[%emt 00:00:15]} 53. Kxf3 {[%clk 00:09:05]} h3 {[%clk
00:12:58]} {[%emt 00:00:39]} 54. Kg4 {[%clk 00:08:17]} {[%emt 00:01:18]} h2
{[%clk 00:13:04]} {[%emt 00:00:24]} 55. Bd5 {[%clk 00:08:46]} Kg6 {[%clk
00:13:09]} {[%emt 00:00:26]} 56. Be4+ {[%clk 00:07:35]} {[%emt 00:01:41]} Kf6
{[%clk 00:11:36]} {[%emt 00:02:03]} 57. Bd5 {[%clk 00:07:56]} {[%emt 00:00:09]}
Bd4 {[%clk 00:10:55]} {[%emt 00:01:10]} 58. Kf4 {[%clk 00:08:26]} Bc5 {[%clk
00:10:35]} {[%emt 00:00:52]} 59. Bg2 {[%clk 00:06:36]} {[%emt 00:02:19]} Ke6
{[%clk 00:10:40]} {[%emt 00:00:24]} 60. a4 {[%clk 00:06:29]} {[%emt 00:00:38]}
d5 {[%clk 00:10:54]} {[%emt 00:00:16]} 61. Bh3+ {[%clk 00:06:43]} {[%emt
00:00:16]} Kd6 {[%clk 00:11:11]} {[%emt 00:00:13]} 62. Bg2 {[%clk 00:07:12]}
{[%emt 00:00:01]} Bg1 {[%clk 00:11:17]} {[%emt 00:00:24]} 63. Bh1 {[%clk
00:07:24]} {[%emt 00:00:18]} Kc5 {[%clk 00:11:32]} {[%emt 00:00:15]} 64. Ke5
{[%clk 00:07:33]} {[%emt 00:00:21]} d4 {[%clk 00:11:43]} {[%emt 00:00:18]} 65.
Ke4 {[%clk 00:07:09]} {[%emt 00:00:54]} Kb4 {[%clk 00:11:57]} {[%emt 00:00:17]}
66. Kd3 {[%clk 00:06:46]} {[%emt 00:00:54]} Kb3 {[%clk 00:11:47]} {[%emt
00:00:39]} 67. Bd5+ {[%clk 00:06:28]} {[%emt 00:00:47]} Kxa4 {[%clk 00:11:12]}
{[%emt 00:01:05]} 68. Kc4 {[%clk 00:06:46]} {[%emt 00:00:13]} Ka3 {[%clk
00:11:04]} {[%emt 00:00:38]} 69. Kd3 {[%clk 00:07:05]} {[%emt 00:00:11]} Kb2
{[%clk 00:11:07]} {[%emt 00:00:28]} 0-1

[Event "Goteborg Open 2018"]
[Site "Molnlycke kulturhus, Biblioteksgatan 2, Molnlycke, Sweden"]
[Date "2018.08.18"]
[Round "5.10"]
[White "Westergren, Bertil"]
[Black "Lundstrom, Mattias"]
[Result "1/2-1/2"]
[TimeControl "15 minutes + 5 seconds per move from move one (Round 1 - 4) / 90 minutes + 30 seconds per move from move one (Round 5 - 8)"]
[WhiteFideId "1712012"]
[BlackFideId "1703536"]
[WhiteElo "1857"]
[BlackElo "2163"]

1. d4 {[%clk 01:30:54]} {[%emt 00:00:05]} d5 {[%clk 01:16:30]} {[%emt
00:14:31]} 2. c4 {[%clk 01:31:05]} {[%emt 00:00:19]} e6 {[%clk 01:16:29]}
{[%emt 00:00:31]} 3. Nc3 {[%clk 01:31:23]} {[%emt 00:00:12]} c6 {[%clk
01:16:55]} {[%emt 00:00:05]} 4. cxd5 {[%clk 01:30:40]} {[%emt 00:01:13]} exd5
{[%clk 01:14:36]} {[%emt 00:02:49]} 5. Nf3 {[%clk 01:30:11]} {[%emt 00:00:59]}
Nf6 {[%clk 01:13:21]} {[%emt 00:01:44]} 6. Bg5 {[%clk 01:29:09]} {[%emt
00:01:32]} Be7 {[%clk 01:13:32]} {[%emt 00:00:20]} 7. Qc2 {[%clk 01:28:44]}
{[%emt 00:00:55]} O-O {[%clk 01:11:52]} {[%emt 00:02:10]} 8. e3 {[%clk
01:28:55]} {[%emt 00:00:18]} Nbd7 {[%clk 01:04:29]} {[%emt 00:07:54]} 9. Bd3
{[%clk 01:25:00]} {[%emt 00:04:25]} Re8 {[%clk 01:03:19]} {[%emt 00:01:41]} 10.
O-O {[%clk 01:25:01]} {[%emt 00:00:28]} Ne4 {[%clk 01:03:08]} {[%emt 00:00:41]}
11. Bxe7 {[%clk 01:24:53]} {[%emt 00:00:37]} Qxe7 {[%clk 01:03:34]} {[%emt
00:00:04]} 12. Rae1 {[%clk 01:22:37]} {[%emt 00:02:46]} b6 {[%clk 00:57:08]}
{[%emt 00:06:57]} 13. Nd2 {[%clk 01:21:03]} {[%emt 00:02:04]} Ndf6 {[%clk
00:55:02]} {[%emt 00:02:35]} 14. f3 {[%clk 01:20:30]} {[%emt 00:01:03]} Nxd2
{[%clk 00:55:22]} {[%emt 00:00:10]} 15. Qxd2 {[%clk 01:20:46]} {[%emt
00:00:14]} Bb7 {[%clk 00:49:01]} {[%emt 00:06:52]} 16. Rf2 {[%clk 01:14:09]}
{[%emt 00:07:06]} c5 {[%clk 00:47:44]} {[%emt 00:01:47]} 17. dxc5 {[%clk
01:13:44]} {[%emt 00:00:55]} d4 {[%clk 00:43:16]} {[%emt 00:04:59]} 18. Nd1
{[%clk 01:13:09]} {[%emt 00:01:05]} dxe3 {[%clk 00:41:42]} {[%emt 00:02:04]} 19.
Rxe3 {[%clk 01:12:32]} {[%emt 00:01:06]} Qxc5 {[%clk 00:41:49]} {[%emt
00:00:24]} 20. Rxe8+ {[%clk 01:11:51]} {[%emt 00:01:11]} Rxe8 {[%clk 00:42:00]}
{[%emt 00:00:19]} 21. b4 {[%clk 01:05:36]} {[%emt 00:06:46]} Qc7 {[%clk
00:39:37]} {[%emt 00:02:53]} 22. Re2 {[%clk 00:59:07]} {[%emt 00:06:59]} Rd8
{[%clk 00:39:26]} {[%emt 00:00:41]} 23. Nf2 {[%clk 00:55:27]} {[%emt 00:04:10]}
g6 {[%clk 00:36:14]} {[%emt 00:03:43]} 24. Qb2 {[%clk 00:52:33]} {[%emt
00:03:24]} Qd6 {[%clk 00:29:07]} {[%emt 00:07:37]} 25. a3 {[%clk 00:46:44]}
{[%emt 00:06:19]} Qd4 {[%clk 00:26:11]} {[%emt 00:03:25]} 26. Qxd4 {[%clk
00:46:35]} {[%emt 00:00:39]} Rxd4 {[%clk 00:26:40]} {[%emt 00:00:02]} 27. Re7
{[%clk 00:45:46]} {[%emt 00:01:18]} Rd7 {[%clk 00:26:19]} {[%emt 00:00:50]}
1/2-1/2

[Event "Goteborg Open 2018"]
[Site "Molnlycke kulturhus, Biblioteksgatan 2, Molnlycke, Sweden"]
[Date "2018.08.18"]
[Round "6.2"]
[White "Maddens, Martijn"]
[Black "Golubka, Petro"]
[Result "0-1"]
[TimeControl "15 minutes + 5 seconds per move from move one (Round 1 - 4) / 90 minutes + 30 seconds per move from move one (Round 5 - 8)"]
[WhiteTitle "CM"]
[BlackTitle "IM"]
[WhiteFideId "206962"]
[BlackFideId "14114224"]
[WhiteElo "2141"]
[BlackElo "2478"]

1. e4 {[%clk 01:30:58]} {[%emt 00:00:01]} c6 {[%clk 01:29:48]} {[%emt
00:01:13]} 2. d4 {[%clk 01:31:09]} {[%emt 00:00:17]} d5 {[%clk 01:30:15]}
{[%emt 00:00:04]} 3. f3 {[%clk 01:29:13]} {[%emt 00:02:27]} e6 {[%clk
01:30:33]} {[%emt 00:00:12]} 4. Nc3 {[%clk 01:29:38]} {[%emt 00:00:05]} Bb4
{[%clk 01:30:59]} {[%emt 00:00:04]} 5. a3 {[%clk 01:29:37]} {[%emt 00:00:31]}
Bxc3+ {[%clk 01:31:25]} {[%emt 00:00:04]} 6. bxc3 {[%clk 01:30:04]} {[%emt
00:00:03]} dxe4 {[%clk 01:31:52]} {[%emt 00:00:03]} 7. Qe2 {[%clk 01:30:19]}
{[%emt 00:00:15]} exf3 {[%clk 01:31:52]} {[%emt 00:00:30]} 8. Nxf3 {[%clk
01:30:35]} {[%emt 00:00:14]} Nf6 {[%clk 01:31:51]} {[%emt 00:00:31]} 9. Qe3
{[%clk 01:25:59]} {[%emt 00:05:06]} Nd5 {[%clk 01:24:59]} {[%emt 00:07:23]} 10.
Qe4 {[%clk 01:24:06]} {[%emt 00:02:23]} O-O {[%clk 01:20:14]} {[%emt 00:05:14]}
11. c4 {[%clk 01:07:05]} {[%emt 00:17:31]} f5 {[%clk 01:15:34]} {[%emt
00:05:11]} 12. Qe5 {[%clk 01:06:06]} {[%emt 00:01:29]} Ne7 {[%clk 01:12:14]}
{[%emt 00:03:49]} 13. Bd3 {[%clk 01:05:18]} {[%emt 00:01:18]} Ng6 {[%clk
01:12:24]} {[%emt 00:00:20]} 14. Qg3 {[%clk 01:00:43]} {[%emt 00:05:05]} e5
{[%clk 00:56:34]} {[%emt 00:16:20]} 15. dxe5 {[%clk 00:58:34]} {[%emt
00:02:39]} Nd7 {[%clk 00:52:15]} {[%emt 00:04:49]} 16. O-O {[%clk 00:54:54]}
{[%emt 00:04:10]} Nc5 {[%clk 00:38:53]} {[%emt 00:13:52]} 17. Bg5 {[%clk
00:46:15]} {[%emt 00:09:08]} Qe8 {[%clk 00:38:56]} {[%emt 00:00:27]} 18. Rae1
{[%clk 00:38:55]} {[%emt 00:07:50]} Nxd3 {[%clk 00:37:31]} {[%emt 00:01:55]} 19.
cxd3 {[%clk 00:39:22]} {[%emt 00:00:03]} f4 {[%clk 00:37:54]} {[%emt 00:00:06]}
20. Qf2 {[%clk 00:39:37]} {[%emt 00:00:15]} Bf5 {[%clk 00:38:13]} {[%emt
00:00:12]} 21. Qe2 {[%clk 00:35:22]} {[%emt 00:04:45]} h6 {[%clk 00:35:28]}
{[%emt 00:03:15]} 22. Bh4 {[%clk 00:35:47]} {[%emt 00:00:05]} Qd7 {[%clk
00:35:41]} {[%emt 00:00:17]} 23. Rd1 {[%clk 00:31:17]} {[%emt 00:04:59]} b5
{[%clk 00:27:00]} {[%emt 00:09:12]} 24. cxb5 {[%clk 00:28:52]} {[%emt
00:02:55]} cxb5 {[%clk 00:27:28]} {[%emt 00:00:01]} 25. d4 {[%clk 00:28:24]}
{[%emt 00:00:58]} Qd5 {[%clk 00:27:07]} {[%emt 00:00:51]} 26. Be1 {[%clk
00:25:40]} {[%emt 00:03:14]} Rfc8 {[%clk 00:27:24]} {[%emt 00:00:12]} 27. Bb4
{[%clk 00:25:17]} {[%emt 00:00:54]} Rc2 {[%clk 00:27:40]} {[%emt 00:00:14]} 28.
Rd2 {[%clk 00:25:29]} {[%emt 00:00:19]} Rc4 {[%clk 00:27:36]} {[%emt 00:00:34]}
29. Rdd1 {[%clk 00:15:17]} {[%emt 00:10:42]} Rac8 {[%clk 00:25:26]} {[%emt
00:02:40]} 30. Bc5 {[%clk 00:15:36]} {[%emt 00:00:11]} a6 {[%clk 00:24:23]}
{[%emt 00:01:33]} 31. Rc1 {[%clk 00:14:51]} {[%emt 00:01:14]} R8xc5 {[%clk
00:24:15]} {[%emt 00:00:39]} 0-1

[Event "Goteborg Open 2018"]
[Site "Molnlycke kulturhus, Biblioteksgatan 2, Molnlycke, Sweden"]
[Date "2018.08.18"]
[Round "6.3"]
[White "Eriksson, Kristian"]
[Black "Petersson, Baldur Teodor"]
[Result "0-1"]
[TimeControl "15 minutes + 5 seconds per move from move one (Round 1 - 4) / 90 minutes + 30 seconds per move from move one (Round 5 - 8)"]
[BlackTitle "CM"]
[WhiteFideId "1705172"]
[BlackFideId "2309157"]
[WhiteElo "2097"]
[BlackElo "2138"]

1. e4 {[%clk 01:30:56]} {[%emt 00:00:02]} c5 {[%clk 01:30:32]} {[%emt
00:00:30]} 2. Nc3 {[%clk 01:30:50]} {[%emt 00:00:35]} e6 {[%clk 01:30:36]}
{[%emt 00:00:27]} 3. Nf3 {[%clk 01:31:13]} {[%emt 00:00:07]} a6 {[%clk
01:31:00]} {[%emt 00:00:07]} 4. d4 {[%clk 01:31:32]} {[%emt 00:00:10]} cxd4
{[%clk 01:31:23]} {[%emt 00:00:07]} 5. Nxd4 {[%clk 01:31:58]} {[%emt 00:00:04]}
b5 {[%clk 01:30:34]} {[%emt 00:01:18]} 6. Bd3 {[%clk 01:31:08]} {[%emt
00:01:19]} Qb6 {[%clk 01:27:23]} {[%emt 00:03:43]} 7. Nb3 {[%clk 01:30:20]}
{[%emt 00:01:18]} Qc7 {[%clk 01:27:20]} {[%emt 00:00:33]} 8. O-O {[%clk
01:29:58]} {[%emt 00:00:52]} Bb7 {[%clk 01:27:15]} {[%emt 00:00:36]} 9. a3
{[%clk 01:28:58]} {[%emt 00:01:30]} Nf6 {[%clk 01:24:36]} {[%emt 00:03:08]} 10.
Bd2 {[%clk 01:24:51]} {[%emt 00:04:37]} d5 {[%clk 01:20:12]} {[%emt 00:04:55]}
11. exd5 {[%clk 01:21:40]} {[%emt 00:03:42]} Nxd5 {[%clk 01:19:58]} {[%emt
00:00:44]} 12. Nxd5 {[%clk 01:20:04]} {[%emt 00:02:05]} Bxd5 {[%clk 01:20:20]}
{[%emt 00:00:08]} 13. Re1 {[%clk 01:15:03]} {[%emt 00:05:30]} Bd6 {[%clk
01:18:24]} {[%emt 00:02:27]} 14. Qh5 {[%clk 01:14:22]} {[%emt 00:01:11]} Be7
{[%clk 01:07:07]} {[%emt 00:11:48]} 15. Bc3 {[%clk 01:09:51]} {[%emt 00:05:00]}
Nc6 {[%clk 01:05:15]} {[%emt 00:02:23]} 16. Be4 {[%clk 00:57:54]} {[%emt
00:12:27]} Bxe4 {[%clk 01:00:30]} {[%emt 00:05:16]} 17. Rxe4 {[%clk 00:58:09]}
{[%emt 00:00:14]} O-O {[%clk 01:00:09]} {[%emt 00:00:51]} 18. Rae1 {[%clk
00:52:21]} {[%emt 00:06:17]} Rad8 {[%clk 00:54:51]} {[%emt 00:05:48]} 19. Qg4
{[%clk 00:44:57]} {[%emt 00:07:53]} g6 {[%clk 00:53:55]} {[%emt 00:01:28]} 20.
Qh3 {[%clk 00:39:50]} {[%emt 00:05:35]} e5 {[%clk 00:52:24]} {[%emt 00:02:02]}
21. g3 {[%clk 00:34:26]} {[%emt 00:05:53]} Bd6 {[%clk 00:49:11]} {[%emt
00:03:44]} 22. Nd2 {[%clk 00:29:04]} {[%emt 00:05:51]} f5 {[%clk 00:43:41]}
{[%emt 00:06:00]} 23. R4e2 {[%clk 00:28:55]} {[%emt 00:00:40]} e4 {[%clk
00:41:00]} {[%emt 00:03:11]} 24. Kh1 {[%clk 00:22:22]} {[%emt 00:07:02]} Be5
{[%clk 00:40:16]} {[%emt 00:01:14]} 25. Bxe5 {[%clk 00:20:46]} {[%emt
00:02:06]} Nxe5 {[%clk 00:39:41]} {[%emt 00:01:05]} 26. f4 {[%clk 00:17:11]}
{[%emt 00:04:05]} exf3 {[%clk 00:30:54]} {[%emt 00:09:18]} 27. Nxf3 {[%clk
00:13:39]} {[%emt 00:04:02]} Nxf3 {[%clk 00:29:51]} {[%emt 00:01:33]} 28. Re7
{[%clk 00:13:55]} {[%emt 00:00:13]} Ng5 {[%clk 00:30:15]} {[%emt 00:00:07]} 29.
Qh6 {[%clk 00:06:20]} {[%emt 00:08:03]} Qc6+ {[%clk 00:29:31]} {[%emt
00:01:16]} 30. Kg1 {[%clk 00:06:43]} {[%emt 00:00:08]} Qc5+ {[%clk 00:27:58]}
{[%emt 00:02:04]} 31. Kf1 {[%clk 00:05:28]} {[%emt 00:01:44]} Nf7 {[%clk
00:28:06]} {[%emt 00:00:22]} 0-1

[Event "Goteborg Open 2018"]
[Site "Molnlycke kulturhus, Biblioteksgatan 2, Molnlycke, Sweden"]
[Date "2018.08.18"]
[Round "6.4"]
[White "Bengtsson, Tage"]
[Black "Johansson, Roy"]
[Result "0-1"]
[TimeControl "15 minutes + 5 seconds per move from move one (Round 1 - 4) / 90 minutes + 30 seconds per move from move one (Round 5 - 8)"]
[WhiteFideId "1713850"]
[BlackFideId "1745972"]
[WhiteElo "2001"]
[BlackElo "1889"]

1. d4 {[%clk 01:30:57]} {[%emt 00:00:03]} f5 {[%clk 01:30:49]} {[%emt
00:00:12]} 2. g3 {[%clk 01:30:56]} {[%emt 00:00:30]} g6 {[%clk 01:31:10]}
{[%emt 00:00:07]} 3. Bg2 {[%clk 01:31:00]} {[%emt 00:00:27]} Nf6 {[%clk
01:31:27]} {[%emt 00:00:14]} 4. Nf3 {[%clk 01:30:51]} {[%emt 00:00:38]} Bg7
{[%clk 01:31:43]} {[%emt 00:00:14]} 5. O-O {[%clk 01:31:14]} {[%emt 00:00:07]}
O-O {[%clk 01:32:08]} {[%emt 00:00:05]} 6. b3 {[%clk 01:31:15]} {[%emt
00:00:29]} d6 {[%clk 01:32:23]} {[%emt 00:00:16]} 7. Bb2 {[%clk 01:31:26]}
{[%emt 00:00:19]} Qe8 {[%clk 01:32:09]} {[%emt 00:00:44]} 8. Nbd2 {[%clk
01:31:26]} {[%emt 00:00:29]} Nc6 {[%clk 01:27:27]} {[%emt 00:05:13]} 9. c4
{[%clk 01:22:57]} {[%emt 00:08:59]} e5 {[%clk 01:27:19]} {[%emt 00:00:37]} 10.
dxe5 {[%clk 01:23:19]} {[%emt 00:00:08]} dxe5 {[%clk 01:27:27]} {[%emt
00:00:22]} 11. e4 {[%clk 01:22:51]} {[%emt 00:00:58]} f4 {[%clk 01:26:36]}
{[%emt 00:01:20]} 12. Qc2 {[%clk 01:16:29]} {[%emt 00:06:52]} h6 {[%clk
01:24:00]} {[%emt 00:03:06]} 13. Rae1 {[%clk 01:03:24]} {[%emt 00:13:35]} g5
{[%clk 01:23:28]} {[%emt 00:01:03]} 14. gxf4 {[%clk 01:02:11]} {[%emt
00:01:42]} gxf4 {[%clk 01:23:16]} {[%emt 00:00:42]} 15. Kh1 {[%clk 00:58:04]}
{[%emt 00:04:37]} Kh8 {[%clk 01:22:20]} {[%emt 00:01:26]} 16. Ng1 {[%clk
00:56:23]} {[%emt 00:02:11]} Ng4 {[%clk 01:20:04]} {[%emt 00:02:46]} 17. Bf3
{[%clk 00:53:24]} {[%emt 00:03:30]} Qh5 {[%clk 01:15:42]} {[%emt 00:04:52]} 18.
Bxg4 {[%clk 00:53:33]} {[%emt 00:00:20]} Bxg4 {[%clk 01:15:36]} {[%emt
00:00:36]} 19. f3 {[%clk 00:52:14]} {[%emt 00:01:49]} Be6 {[%clk 01:15:17]}
{[%emt 00:00:49]} 20. a3 {[%clk 00:47:34]} {[%emt 00:05:11]} Bf6 {[%clk
01:13:40]} {[%emt 00:02:06]} 21. Re2 {[%clk 00:43:25]} {[%emt 00:04:39]} Rg8
{[%clk 01:08:29]} {[%emt 00:05:41]} 22. Rff2 {[%clk 00:41:55]} {[%emt
00:01:59]} Rg7 {[%clk 01:06:42]} {[%emt 00:02:18]} 23. Rg2 {[%clk 00:41:43]}
{[%emt 00:00:42]} Rag8 {[%clk 01:06:13]} {[%emt 00:00:59]} 24. Rxg7 {[%clk
00:40:38]} {[%emt 00:01:35]} Rxg7 {[%clk 01:06:34]} {[%emt 00:00:09]} 25. Rg2
{[%clk 00:41:02]} {[%emt 00:00:06]} Rxg2 {[%clk 01:00:55]} {[%emt 00:06:09]} 26.
Kxg2 {[%clk 00:41:29]} {[%emt 00:00:02]} Bh4 {[%clk 01:00:09]} {[%emt
00:01:16]} 27. Qd1 {[%clk 00:39:53]} {[%emt 00:02:06]} Qg5+ {[%clk 00:57:58]}
{[%emt 00:02:40]} 28. Kf1 {[%clk 00:38:12]} {[%emt 00:02:12]} Qd8 {[%clk
00:57:11]} {[%emt 00:01:17]} 29. Qc2 {[%clk 00:33:33]} {[%emt 00:05:09]} Nd4
{[%clk 00:56:05]} {[%emt 00:01:36]} 30. Qd3 {[%clk 00:33:41]} {[%emt 00:00:22]}
c5 {[%clk 00:55:05]} {[%emt 00:01:30]} 31. Bxd4 {[%clk 00:32:53]} {[%emt
00:01:18]} cxd4 {[%clk 00:55:12]} {[%emt 00:00:23]} 32. Qb1 {[%clk 00:28:36]}
{[%emt 00:04:45]} Qa5 {[%clk 00:53:53]} {[%emt 00:01:51]} 33. Qa2 {[%clk
00:25:49]} {[%emt 00:03:17]} Qc3 {[%clk 00:51:33]} {[%emt 00:02:50]} 34. Kg2
{[%clk 00:24:47]} {[%emt 00:01:33]} Be1 {[%clk 00:48:26]} {[%emt 00:03:36]} 35.
Nb1 {[%clk 00:23:15]} {[%emt 00:02:02]} Qe3 {[%clk 00:47:48]} {[%emt 00:01:08]}
36. Qb2 {[%clk 00:21:38]} {[%emt 00:02:07]} Kg7 {[%clk 00:46:28]} {[%emt
00:01:50]} 37. Kf1 {[%clk 00:18:22]} {[%emt 00:03:47]} Bh4 {[%clk 00:45:00]}
{[%emt 00:01:56]} 38. a4 {[%clk 00:12:35]} {[%emt 00:06:18]} Kf6 {[%clk
00:44:25]} {[%emt 00:01:05]} 39. Qd2 {[%clk 00:12:10]} {[%emt 00:00:55]} Qxb3
{[%clk 00:42:03]} {[%emt 00:02:53]} 0-1